bitfinex-derivatives/quotes_BNBF0:USTF0_20230901
["timestamp","ask_amount","ask_price","bid_price","bid_amount"]
[1693609248518,0.17063298,214.04,213.19,0.07692035]
[1693609248719,0.17063298,214.03,213.19,0.07692035]
[1693609249019,0.17063298,214.02,213.19,0.07692035]
[1693609249220,16.4096764,214.05,213.19,0.07692035]
[1693609249221,0.17063298,214.01,213.19,0.07692035]
[1693609249520,0.17063298,214.0,213.19,0.07692035]
[1693609249819,0.17063298,213.99,213.19,0.07692035]
[1693609250019,16.4096764,214.05,213.19,0.07692035]
[1693609250020,0.17063298,213.98,213.19,0.07692035]
[1693609250218,0.17063298,213.97,213.19,0.07692035]
[1693609250517,0.17063298,213.96,213.19,0.07692035]
[1693609250719,0.17063298,213.95,213.19,0.07692035]
[1693609250913,0.17063298,213.94,213.19,0.07692035]
[1693609251117,0.17063298,213.93,213.19,0.07692035]
[1693609251317,0.17063298,213.92,213.19,0.07692035]
[1693609251518,0.17063298,213.91,213.19,0.07692035]
[1693609251715,0.17063298,213.9,213.19,0.07692035]
[1693609251917,0.17063298,213.89,213.19,0.07692035]
[1693609252118,0.17063298,213.88,213.19,0.07692035]
[1693609252323,0.17063298,213.87,213.19,0.07692035]
[1693609252520,0.17063298,213.86,213.19,0.07692035]
[1693609252716,0.17063298,214.04,213.19,0.07692035]
[1693609265330,0.17063298,214.04,213.2,0.07692035]
[1693609271531,0.17063298,214.04,213.2,0.07692009]
[1693609284835,16.58025268,214.04,213.2,0.07692009]
[1693609285139,0.17063298,214.03,213.2,0.07692009]
[1693609309652,0.17063298,214.03,213.21,0.07692009]
[1693609309855,0.17063298,214.03,213.26,0.07692009]
[1693609310057,0.17063298,214.09,213.26,0.07692009]
[1693609310359,0.17063298,214.08,213.25,0.07692009]
[1693609310558,0.17063298,214.09,213.23,0.07692009]
[1693609310760,0.17063298,214.08,213.23,0.07692009]
[1693609311061,0.17063298,214.07,213.23,0.07692009]
[1693609311261,0.17063298,214.06,213.24,0.07692009]
[1693609311462,0.17063298,214.05,213.23,0.07692009]
[1693609311656,0.17063298,214.04,213.23,0.07692009]
[1693609311857,0.17063298,214.03,213.23,0.07692009]
[1693609312055,0.17063298,214.02,213.23,0.07692009]
[1693609312262,0.17063298,214.01,213.23,0.07692009]
[1693609312561,0.17063298,214.0,213.22,0.07692009]
[1693609312761,0.17063298,213.99,213.22,0.07692009]
[1693609312961,0.17063298,213.98,213.22,0.07692009]
[1693609313264,0.17063298,213.97,213.22,0.07692009]
[1693609313462,0.17063298,214.09,213.21,0.07692009]
[1693609313662,0.17063298,214.08,213.21,0.07692009]
[1693609313963,0.17063298,214.07,213.21,0.07692009]
[1693609314261,0.17063298,214.06,213.21,0.07692009]
[1693609314462,0.17063298,214.05,213.21,0.07692009]
[1693609314664,0.17063298,214.09,213.21,0.07692009]
[1693609314856,0.17063298,214.08,213.21,0.07692009]
[1693609315056,0.17063298,214.09,213.21,0.07692009]
[1693609315258,0.17063298,214.08,213.21,0.07692009]
[1693609315455,0.17063298,214.07,213.2,0.07692009]
[1693609315659,0.17063298,214.06,213.2,0.07692009]
[1693609315859,0.17063298,214.05,213.2,0.07692009]
[1693609316061,0.17063298,214.04,213.2,0.07692009]
[1693609316261,0.17063298,214.03,213.2,0.07692009]
[1693609316459,0.17063298,214.02,213.2,0.07692009]
[1693609316661,0.17063298,214.01,213.2,0.07692009]
[1693609316866,0.17063298,214.0,213.2,0.07692009]
[1693609317066,0.17063298,214.09,213.2,0.07692009]
[1693609317259,0.17063298,214.08,213.2,0.07692009]
[1693609317459,0.17063298,214.09,213.2,0.07692009]
[1693609317665,0.17063298,214.08,213.2,0.07692009]
[1693609317865,0.17063298,214.09,213.2,0.07692009]
[1693609318164,0.17063298,214.08,213.2,0.07692009]
[1693609318359,0.17063298,214.07,213.2,0.07692009]
[1693609318564,0.17063298,214.06,213.19,0.07692009]
[1693609318763,0.17063298,214.05,213.19,0.07692009]
[1693609319065,0.17063298,214.04,213.19,0.07692009]
[1693609319266,0.17063298,214.03,213.19,0.07692009]
[1693609319565,0.17063298,214.02,213.19,0.07692009]
[1693609319759,0.17063298,214.09,213.19,0.07692009]
[1693609319965,0.17063298,214.08,213.19,0.07692009]
[1693609320163,0.17063298,214.09,213.2,0.07692009]
[1693609320467,16.4096197,214.1,213.2,0.07692009]
[1693609320468,0.17063298,214.08,213.2,0.07692009]
[1693609320661,0.17063298,214.07,213.2,0.07692009]
[1693609320864,0.17063298,214.06,213.2,0.07692009]
[1693609321065,0.17063298,214.09,213.2,0.07692009]
[1693609321269,0.17063298,214.08,213.2,0.07692009]
[1693609321468,0.17063298,214.07,213.2,0.07692009]
[1693609321669,0.17063298,214.06,213.2,0.07692009]
[1693609321869,0.17063298,214.05,213.2,0.07692009]
[1693609322170,0.17063298,214.04,213.2,0.07692009]
[1693609322371,0.17063298,214.09,213.2,0.07692009]
[1693609322571,0.17063298,214.08,213.19,0.07692009]
[1693609322765,0.17063298,214.09,213.19,0.07692009]
[1693609322966,0.17063298,214.08,213.19,0.07692009]
[1693609323171,0.17063298,214.07,213.19,0.07692009]
[1693609323370,0.17063298,214.06,213.19,0.07692009]
[1693609323568,0.17063298,214.05,213.19,0.07692009]
[1693609323874,0.17063298,214.04,213.19,0.07692009]
[1693609324075,0.17063298,214.03,213.19,0.07692009]
[1693609324374,0.17063298,214.02,213.19,0.07692009]
[1693609324574,0.17063298,214.01,213.19,0.07692009]
[1693609324775,0.17063298,214.17,213.2,0.86156663]
[1693609325075,0.17063298,214.16,213.2,0.86156663]
[1693609325274,0.17063298,214.16,213.19,0.07692009]
[1693609325275,0.17063298,214.17,213.19,0.07692009]
[1693609325475,0.17063298,214.16,213.2,0.07692009]
[1693609325775,0.17063298,214.15,213.2,0.07692009]
[1693609325969,0.17063298,214.14,213.2,0.07692009]
[1693609326171,0.17063298,214.13,213.2,0.07692009]
[1693609326369,0.17063298,214.17,213.2,0.07692009]
[1693609326676,0.17063298,214.16,213.2,0.07692009]
[1693609326870,0.17063298,214.17,213.2,0.07692009]
[1693609327176,0.17063298,214.16,213.2,0.07692009]
[1693609327371,16.4096197,214.18,213.2,0.07692009]
[1693609327372,0.17063298,214.17,213.2,0.07692009]
[1693609327575,0.17063298,214.16,213.2,0.07692009]
[1693609327776,0.17063298,214.17,213.21,0.07692009]
[1693609327976,0.17063298,214.16,213.21,0.07692009]
[1693609328177,0.17063298,214.15,213.21,0.07692009]
[1693609328373,0.17063298,214.14,213.21,0.07692009]
[1693609328574,0.17063298,214.17,213.21,0.07692009]
[1693609328772,0.17063298,214.16,213.21,0.07692009]
[1693609328976,0.17063298,214.15,213.21,0.07692009]
[1693609329282,0.17063298,214.14,213.21,0.07692009]
[1693609329476,0.17063298,214.13,213.22,0.07692009]
[1693609329673,0.17063298,214.17,213.22,0.07692009]
[1693609329873,0.17063298,214.16,213.21,0.07692009]
[1693609330074,0.17063298,214.15,213.21,0.07692009]
[1693609330278,0.17063298,214.17,213.21,0.07692009]
[1693609330473,0.17063298,214.16,213.22,0.07692009]
[1693609330779,16.4096197,214.18,213.22,0.07692009]
[1693609330780,0.17063298,214.15,213.22,0.07692009]
[1693609331081,0.17063298,214.14,213.22,0.07692009]
[1693609331279,0.17063298,214.13,213.22,0.07692009]
[1693609331578,0.17063298,214.12,213.22,0.07692009]
[1693609331774,0.17063298,214.17,213.22,0.07692009]
[1693609331979,0.17063298,214.16,213.22,0.07692009]
[1693609332181,0.17063298,214.15,213.22,0.07692009]
[1693609332382,0.17063298,214.17,213.22,0.07692009]
[1693609332584,0.17063298,214.16,213.22,0.07692009]
[1693609332780,0.17063298,214.15,213.22,0.07692009]
[1693609333082,0.17063298,214.14,213.22,0.07692009]
[1693609333283,0.17063298,214.13,213.22,0.07692009]
[1693609333482,0.17063298,214.17,213.23,0.07692009]
[1693609333681,0.17063298,214.16,213.23,0.07692009]
[1693609333883,0.17063298,214.17,213.23,0.07692009]
[1693609334182,0.17063298,214.16,213.23,0.07692009]
[1693609334378,0.17063298,214.15,213.23,0.07692009]
[1693609334582,0.17063298,214.17,213.23,0.07692009]
[1693609334877,0.17063298,214.16,213.23,0.07692009]
[1693609335077,0.17063298,214.17,213.23,0.07692009]
[1693609335281,0.17063298,214.16,213.23,0.07692009]
[1693609335477,0.17063298,214.15,213.23,0.07692009]
[1693609335678,16.4096197,214.18,213.23,0.07692009]
[1693609335679,0.17063298,214.17,213.23,0.07692009]
[1693609335881,0.17063298,214.16,213.23,0.07692009]
[1693609336078,0.17063298,214.17,213.23,0.07692009]
[1693609336384,0.17063298,214.16,213.23,0.07692009]
[1693609336583,0.17063298,214.22,213.24,0.07692009]
[1693609336785,0.17063298,214.21,213.23,0.07692009]
[1693609337084,0.17063298,214.2,213.23,0.07692009]
[1693609337382,0.17063298,214.19,213.23,0.07692009]
[1693609337584,0.17063298,214.22,213.24,0.07692009]
[1693609337784,0.17063298,214.21,213.24,0.07692009]
[1693609337981,0.17063298,214.2,213.24,0.07692009]
[1693609338180,0.17063298,214.19,213.24,0.07692009]
[1693609338380,0.17063298,214.18,213.24,0.07692009]
[1693609338581,0.17063298,214.22,213.24,0.07692009]
[1693609338782,0.17063298,214.21,213.24,0.07692009]
[1693609339084,0.17063298,214.2,213.24,0.07692009]
[1693609339284,0.17063298,214.19,213.24,0.07692009]
[1693609339485,0.17063298,214.22,213.25,0.07692009]
[1693609339685,0.17063298,214.21,213.25,0.07692009]
[1693609339886,0.17063298,214.22,213.25,0.07692009]
[1693609340085,0.17063298,214.21,213.25,0.07692009]
[1693609340288,0.17063298,214.2,213.25,0.07692009]
[1693609340484,0.17063298,214.22,213.25,0.07692009]
[1693609340684,0.17063298,214.21,213.25,0.07692009]
[1693609340986,0.17063298,214.2,213.25,0.07692009]
[1693609341181,0.17063298,214.19,213.25,0.07692009]
[1693609341386,0.17063298,214.18,213.25,0.07692009]
[1693609341582,0.17063298,214.22,213.26,0.07692009]
[1693609341782,0.17063298,214.21,213.26,0.07692009]
[1693609341986,0.17063298,214.2,213.26,0.07692009]
[1693609342183,0.17063298,214.22,213.26,0.07692009]
[1693609342387,0.17063298,214.21,213.27,0.07692009]
[1693609342586,0.17063298,214.22,213.27,0.07692009]
[1693609342787,0.17063298,214.21,213.27,0.07692009]
[1693609342987,0.17063298,214.2,213.27,0.07692009]
[1693609343181,0.17063298,214.19,213.27,0.07692009]
[1693609343388,0.17063298,214.22,213.27,0.07692009]
[1693609343584,0.17063298,214.21,213.28,0.07692009]
[1693609343791,0.17063298,214.2,213.28,0.07692009]
[1693609344092,0.17063298,214.19,213.28,0.07692009]
[1693609344283,0.17063298,214.18,213.28,0.07692009]
[1693609344488,0.17063298,214.17,213.3,0.07692009]
[1693609344688,0.17063298,214.16,213.3,0.07692009]
[1693609344888,0.17063298,214.15,213.3,0.07692009]
[1693609345086,0.17063298,214.22,213.3,0.07692009]
[1693609345283,0.17063298,214.21,213.3,0.07692009]
[1693609345589,0.17063298,214.2,213.3,0.07692009]
[1693609345789,0.17063298,214.19,213.3,0.07692009]
[1693609345982,0.17063298,214.18,213.3,0.07692009]
[1693609346187,16.4096197,214.23,213.3,0.07692009]
[1693609346188,0.17063298,214.17,213.3,0.07692009]
[1693609346489,0.17063298,214.16,213.3,0.07692009]
[1693609346685,0.17063298,214.22,213.3,0.07692009]
[1693609346988,0.17063298,214.21,213.3,0.07692009]
[1693609347186,0.17063298,214.2,213.3,0.07692009]
[1693609347390,0.17063298,214.19,213.3,0.07692009]
[1693609347590,0.17063298,214.18,213.3,0.07692009]
[1693609347785,0.17063298,214.22,213.3,0.07692009]
[1693609347988,0.17063298,214.21,213.3,0.07692009]
[1693609348293,0.17063298,214.2,213.3,0.07692009]
[1693609348491,0.17063298,214.19,213.3,0.07692009]
[1693609348787,0.17063298,214.18,213.3,0.07692009]
[1693609348991,0.17063298,214.17,213.3,0.07692009]
[1693609349190,0.17063298,214.16,213.3,0.07692009]
[1693609349386,0.17063298,214.15,213.3,0.07692009]
[1693609349589,0.17063298,214.14,213.3,0.07692009]
[1693609349789,0.17063298,214.13,213.3,0.07692009]
[1693609350092,0.17063298,214.12,213.3,0.07692009]
[1693609350291,0.17063298,214.16,213.3,0.07692009]
[1693609350591,0.17063298,214.15,213.3,0.07692009]
[1693609350787,0.17063298,214.14,213.3,0.07692009]
[1693609350985,0.17063298,214.13,213.3,0.07692009]
[1693609351185,0.17063298,214.16,213.3,0.07692009]
[1693609351388,0.17063298,214.15,213.3,0.07692009]
[1693609351584,0.17063298,214.14,213.3,0.07692009]
[1693609351787,0.17063298,214.13,213.3,0.07692009]
[1693609351988,0.17063298,214.12,213.3,0.07692009]
[1693609352185,0.17063298,214.11,213.3,0.07692009]
[1693609352391,0.17063298,214.1,213.29,0.07692009]
[1693609352592,0.17063298,214.1,213.23,0.15384018]
[1693609352593,0.17063298,214.09,213.3,0.07692009]
[1693609352791,0.17063298,214.08,213.3,0.07692009]
[1693609353092,0.17063298,214.07,213.3,0.07692009]
[1693609353394,0.17063298,214.06,213.3,0.07692009]
[1693609353587,0.17063298,214.16,213.3,0.07692009]
[1693609353792,0.17063298,214.15,213.3,0.07692009]
[1693609353993,0.17063298,214.14,213.3,0.07692009]
[1693609354194,0.17063298,214.13,213.3,0.07692009]
[1693609354494,0.17063298,214.12,213.3,0.07692009]
[1693609354689,0.17063298,214.11,213.3,0.07692009]
[1693609354994,0.17063298,214.1,213.3,0.07692009]
[1693609355293,0.17063298,214.09,213.3,0.07692009]
[1693609355493,0.17063298,214.08,213.29,0.07692009]
[1693609355690,0.17063298,214.07,213.29,0.07692009]
[1693609355892,0.17063298,214.06,213.29,0.07692009]
[1693609356088,0.17063298,214.05,213.29,0.07692009]
[1693609356394,0.17063298,214.04,213.29,0.07692009]
[1693609356595,0.17063298,214.03,213.29,0.07692009]
[1693609356788,0.17063298,214.02,213.29,0.07692009]
[1693609356993,0.17063298,214.01,213.29,0.07692009]
[1693609357289,0.17063298,214.0,213.29,0.07692009]
[1693609357493,0.17063298,214.16,213.29,0.07692009]
[1693609357690,0.17063298,214.15,213.29,0.07692009]
[1693609357897,0.17063298,214.14,213.29,0.07692009]
[1693609358089,0.17063298,214.16,213.29,0.07692009]
[1693609358289,0.17063298,214.15,213.29,0.07692009]
[1693609358490,0.17063298,214.16,213.29,0.07692009]
[1693609358695,0.17063298,214.15,213.29,0.07692009]
[1693609358890,0.17063298,214.14,213.29,0.07692009]
[1693609359093,0.17063298,214.13,213.29,0.07692009]
[1693609359293,0.17063298,214.12,213.29,0.07692009]
[1693609359492,0.17063298,214.11,213.28,0.07692009]
[1693609359698,0.17063298,214.1,213.28,0.07692009]
[1693609359896,0.17063298,214.09,213.28,0.07692009]
[1693609360194,0.17063298,214.08,213.28,0.07692009]
[1693609360396,0.17063298,214.07,213.28,0.07692009]
[1693609360596,0.17063298,214.16,213.28,0.07692009]
[1693609360795,0.17063298,214.15,213.28,0.07692009]
[1693609360991,0.17063298,214.14,213.29,0.07692009]
[1693609361196,0.17063298,214.13,213.29,0.07692009]
[1693609361495,0.17063298,214.12,213.28,0.07692009]
[1693609361690,0.17063298,214.11,213.28,0.07692009]
[1693609361893,0.17063298,214.1,213.28,0.07692009]
[1693609362090,0.17063298,214.09,213.28,0.07692009]
[1693609362296,0.17063298,214.08,213.28,0.07692009]
[1693609362597,0.17063298,214.07,213.28,0.07692009]
[1693609362795,0.17063298,214.11,213.28,0.07692009]
[1693609362991,0.17063298,214.1,213.28,0.07692009]
[1693609363197,0.17063298,214.11,213.28,0.07692009]
[1693609363397,0.17063298,214.1,213.28,0.07692009]
[1693609363597,0.17063298,214.11,213.28,0.07692009]
[1693609363797,0.17063298,214.1,213.28,0.07692009]
[1693609363989,0.17063298,214.09,213.28,0.07692009]
[1693609364196,0.17063298,214.08,213.28,0.07692009]
[1693609364395,0.17063298,214.07,213.28,0.07692009]
[1693609364597,0.17063298,214.06,213.28,0.07692009]
[1693609364799,0.17063298,214.05,213.28,0.07692009]
[1693609365093,0.17063298,214.04,213.28,0.07692009]
[1693609365305,0.17063298,214.03,213.28,0.07692009]
[1693609365498,0.17063298,214.11,213.28,0.07692009]
[1693609365698,0.17063298,214.1,213.28,0.07692009]
[1693609365897,0.17063298,214.11,213.28,0.07692009]
[1693609366098,0.17063298,214.1,213.28,0.07692009]
[1693609366299,0.17063298,214.09,213.28,0.07692009]
[1693609366498,0.17063298,214.08,213.28,0.07692009]
[1693609366720,0.17063298,214.07,213.28,0.07692009]
[1693609366893,0.17063298,214.11,213.28,0.07692009]
[1693609367098,0.17063298,214.1,213.28,0.07692009]
[1693609367294,0.17063298,214.09,213.28,0.07692009]
[1693609367496,0.17063298,214.08,213.28,0.07692009]
[1693609367695,0.17063298,214.11,213.28,0.07692009]
[1693609367898,0.17063298,214.1,213.28,0.07692009]
[1693609368094,0.17063298,214.09,213.28,0.07692009]
[1693609368301,0.17063298,214.08,213.28,0.07692009]
[1693609368496,0.17063298,214.07,213.28,0.07692009]
[1693609368698,0.17063298,214.06,213.28,0.07692009]
[1693609368904,0.17063298,214.05,213.28,0.07692009]
[1693609369103,0.17063298,214.04,213.28,0.07692009]
[1693609369303,0.17063298,214.03,213.28,0.07692009]
[1693609369500,16.4096197,214.12,213.28,0.07692009]
[1693609369501,0.17063298,214.02,213.28,0.07692009]
[1693609369701,0.17063298,214.01,213.28,0.07692009]
[1693609369902,0.17063298,214.0,213.28,0.07692009]
[1693609370104,0.17063298,213.99,213.28,0.07692009]
[1693609370302,0.17063298,214.11,213.28,0.07692009]
[1693609370501,0.17063298,214.1,213.28,0.07692009]
[1693609370699,0.17063298,214.11,213.28,0.07692009]
[1693609370902,0.17063298,214.1,213.28,0.07692009]
[1693609371104,0.17063298,214.11,213.28,0.07692009]
[1693609371301,0.17063298,214.1,213.28,0.07692009]
[1693609371501,0.17063298,214.09,213.28,0.07692009]
[1693609371698,0.17063298,214.11,213.28,0.07692009]
[1693609371900,0.17063298,214.1,213.28,0.07692009]
[1693609372103,0.17063298,214.09,213.28,0.07692009]
[1693609372298,0.17063298,214.08,213.28,0.07692009]
[1693609372496,0.17063298,214.07,213.28,0.07692009]
[1693609372697,0.17063298,214.06,213.28,0.07692009]
[1693609372903,0.17063298,214.11,213.28,0.07692009]
[1693609373105,0.17063298,214.1,213.28,0.07692009]
[1693609373301,0.17063298,214.11,213.28,0.07692009]
[1693609373501,0.17063298,214.1,213.28,0.07692009]
[1693609373707,0.17063298,214.09,213.28,0.07692009]
[1693609373902,0.17063298,214.08,213.28,0.07692009]
[1693609374205,0.17063298,214.07,213.28,0.07692009]
[1693609374405,0.17063298,214.06,213.28,0.07692009]
[1693609374598,16.4096197,214.12,213.28,0.07692009]
[1693609374599,0.17063298,214.05,213.28,0.07692009]
[1693609374800,0.17063298,214.04,213.28,0.07692009]
[1693609375003,0.17063298,214.03,213.28,0.07692009]
[1693609375201,0.17063298,214.02,213.28,0.07692009]
[1693609375404,0.17063298,214.01,213.28,0.07692009]
[1693609375602,0.17063298,214.0,213.28,0.07692009]
[1693609375804,0.17063298,213.99,213.28,0.07692009]
[1693609376000,0.17063298,213.98,213.28,0.07692009]
[1693609376200,0.17063298,213.97,213.28,0.07692009]
[1693609376504,0.17063298,213.96,213.28,0.07692009]
[1693609376705,0.17063298,213.95,213.28,0.07692009]
[1693609376902,0.17063298,213.94,213.28,0.07692009]
[1693609377103,0.17063298,213.93,213.28,0.07692009]
[1693609377302,0.17063298,213.92,213.28,0.07692009]
[1693609377502,16.4096197,214.14,213.28,0.07692009]
[1693609377503,0.17063298,214.13,213.28,0.07692009]
[1693609377702,0.17063298,214.12,213.28,0.07692009]
[1693609378010,0.17063298,214.11,213.28,0.07692009]
[1693609378307,0.17063298,214.1,213.28,0.07692009]
[1693609378508,0.17063298,214.09,213.28,0.07692009]
[1693609378707,0.17063298,214.08,213.28,0.07692009]
[1693609378909,0.17063298,214.07,213.28,0.07692009]
[1693609379110,0.17063298,214.06,213.28,0.07692009]
[1693609379305,0.17063298,214.05,213.28,0.07692009]
[1693609379504,0.17063298,214.04,213.28,0.07692009]
[1693609379709,0.17063298,214.03,213.28,0.07692009]
[1693609379910,0.17063298,214.02,213.28,0.07692009]
[1693609380109,0.17063298,214.01,213.28,0.07692009]
[1693609380310,0.17063298,214.13,213.28,0.07692009]
[1693609380510,0.17063298,214.12,213.28,0.07692009]
[1693609380806,0.17063298,214.11,213.28,0.07692009]
[1693609381006,0.17063298,214.1,213.28,0.07692009]
[1693609381205,0.17063298,214.09,213.28,0.07692009]
[1693609381410,0.17063298,214.08,213.28,0.07692009]
[1693609381604,0.17063298,214.07,213.28,0.07692009]
[1693609381809,0.17063298,214.06,213.28,0.07692009]
[1693609382005,0.17063298,214.05,213.28,0.07692009]
[1693609382210,0.17063298,214.04,213.28,0.07692009]
[1693609382507,0.17063298,214.03,213.28,0.07692009]
[1693609382707,0.17063298,214.02,213.28,0.07692009]
[1693609382911,0.17063298,214.01,213.28,0.07692009]
[1693609383111,0.17063298,214.0,213.28,0.07692009]
[1693609383312,0.17063298,213.99,213.28,0.07692009]
[1693609383511,0.17063298,214.13,213.28,0.07692009]
[1693609383713,0.17063298,214.12,213.28,0.07692009]
[1693609384012,0.17063298,214.11,213.28,0.07692009]
[1693609384206,0.17063298,214.13,213.28,0.07692009]
[1693609384409,0.17063298,214.12,213.28,0.07692009]
[1693609384604,0.17063298,214.11,213.28,0.07692009]
[1693609384809,0.17063298,214.1,213.28,0.07692009]
[1693609385009,0.17063298,214.13,213.28,0.07692009]
[1693609385206,0.17063298,214.12,213.28,0.07692009]
[1693609385410,0.17063298,214.13,213.28,0.07692009]
[1693609385709,0.17063298,214.12,213.28,0.07692009]
[1693609385910,0.17063298,214.11,213.28,0.07692009]
[1693609386109,0.17063298,214.1,213.28,0.07692009]
[1693609386307,0.17063298,214.09,213.28,0.07692009]
[1693609386511,0.17063298,214.08,213.28,0.07692009]
[1693609386713,0.17063298,214.13,213.28,0.07692009]
[1693609387011,0.17063298,214.12,213.28,0.07692009]
[1693609387312,0.17063298,214.11,213.28,0.07692009]
[1693609387514,0.17063298,214.1,213.28,0.07692009]
[1693609387713,0.17063298,214.13,213.28,0.07692009]
[1693609387915,0.17063298,214.12,213.28,0.07692009]
[1693609388114,0.17063298,214.11,213.28,0.07692009]
[1693609388413,0.17063298,214.1,213.28,0.07692009]
[1693609388614,0.17063298,214.09,213.28,0.07692009]
[1693609388914,0.17063298,214.08,213.28,0.07692009]
[1693609389114,0.17063298,214.07,213.28,0.07692009]
[1693609389312,0.17063298,214.06,213.28,0.07692009]
[1693609389614,0.17063298,214.05,213.28,0.07692009]
[1693609389814,0.17063298,214.04,213.28,0.07692009]
[1693609390015,0.17063298,214.13,213.28,0.07692009]
[1693609390218,0.17063298,214.12,213.28,0.07692009]
[1693609390514,0.17063298,214.11,213.28,0.07692009]
[1693609390715,0.17063298,214.1,213.28,0.07692009]
[1693609390914,0.17063298,214.09,213.28,0.07692009]
[1693609391116,0.17063298,214.08,213.28,0.07692009]
[1693609391308,0.17063298,214.07,213.28,0.07692009]
[1693609391510,0.17063298,214.06,213.28,0.07692009]
[1693609391711,0.17063298,214.05,213.28,0.07692009]
[1693609391911,0.17063298,214.04,213.28,0.07692009]
[1693609392111,0.17063298,214.03,213.28,0.07692009]
[1693609392316,0.17063298,214.02,213.28,0.07692009]
[1693609392516,0.17063298,214.13,213.28,0.07692009]
[1693609392719,0.17063298,214.12,213.28,0.07692009]
[1693609393021,0.17063298,214.11,213.28,0.07692009]
[1693609393218,0.17063298,214.1,213.28,0.07692009]
[1693609393418,0.17063298,214.09,213.28,0.07692009]
[1693609393618,0.17063298,214.08,213.28,0.07692009]
[1693609393818,0.17063298,214.07,213.28,0.07692009]
[1693609394119,0.17063298,214.06,213.28,0.07692009]
[1693609394319,0.17063298,214.05,213.28,0.07692009]
[1693609394513,0.17063298,214.04,213.28,0.07692009]
[1693609394717,0.17063298,214.03,213.29,0.07692009]
[1693609394913,0.17063298,214.02,213.29,0.07692009]
[1693609395118,0.17063298,214.01,213.29,0.07692009]
[1693609395317,0.17063298,214.0,213.29,0.07692009]
[1693609395517,0.17063298,214.13,213.29,0.07692009]
[1693609395719,0.17063298,214.12,213.29,0.07692009]
[1693609395917,0.17063298,214.11,213.29,0.07692009]
[1693609396119,0.17063298,214.1,213.29,0.07692009]
[1693609396318,0.17063298,214.09,213.29,0.07692009]
[1693609396521,0.17063298,214.08,213.29,0.07692009]
[1693609396720,0.17063298,214.07,213.29,0.07692009]
[1693609396916,0.17063298,214.06,213.29,0.07692009]
[1693609397122,0.17063298,214.05,213.29,0.07692009]
[1693609397421,16.4096197,214.14,213.29,0.07692009]
[1693609397422,0.17063298,214.04,213.29,0.07692009]
[1693609397624,0.17063298,214.03,213.29,0.07692009]
[1693609397922,0.17063298,214.02,213.29,0.07692009]
[1693609398117,0.17063298,214.01,213.29,0.07692009]
[1693609398318,0.17063298,214.0,213.29,0.07692009]
[1693609398517,0.17063298,213.99,213.29,0.07692009]
[1693609398722,0.17063298,213.98,213.29,0.07692009]
[1693609398921,0.17063298,214.13,213.29,0.07692009]
[1693609399122,0.17063298,214.12,213.29,0.07692009]
[1693609399319,0.17063298,214.11,213.29,0.07692009]
[1693609399517,0.17063298,214.1,213.29,0.07692009]
[1693609399722,0.17063298,214.09,213.29,0.07692009]
[1693609400023,0.17063298,214.08,213.29,0.07692009]
[1693609400224,0.17063298,214.13,213.29,0.07692009]
[1693609400424,0.17063298,214.12,213.29,0.07692009]
[1693609400626,0.17063298,214.11,213.29,0.07692009]
[1693609400818,0.17063298,214.1,213.29,0.07692009]
[1693609401022,0.17063298,214.09,213.29,0.07692009]
[1693609401219,0.17063298,214.08,213.29,0.07692009]
[1693609401422,0.17063298,214.07,213.29,0.07692009]
[1693609401625,0.17063298,214.06,213.29,0.07692009]
[1693609401920,0.17063298,214.05,213.29,0.07692009]
[1693609402120,0.17063298,214.04,213.29,0.07692009]
[1693609402325,0.17063298,214.03,213.29,0.07692009]
[1693609402518,0.17063298,214.02,213.29,0.07692009]
[1693609402717,0.17063298,214.13,213.29,0.07692009]
[1693609402922,0.17063298,214.12,213.29,0.07692009]
[1693609403124,0.17063298,214.11,213.29,0.07692009]
[1693609403320,0.17063298,214.13,213.29,0.07692009]
[1693609403525,0.17063298,214.12,213.29,0.07692009]
[1693609403823,0.17063298,214.11,213.29,0.07692009]
[1693609404019,0.17063298,214.13,213.29,0.07692009]
[1693609404225,0.17063298,214.12,213.29,0.07692009]
[1693609404422,0.17063298,214.11,213.29,0.07692009]
[1693609404626,0.17063298,214.1,213.29,0.07692009]
[1693609404825,16.4096197,214.14,213.29,0.07692009]
[1693609404826,0.17063298,214.13,213.29,0.07692009]
[1693609405025,0.17063298,214.12,213.29,0.07692009]
[1693609405325,0.17063298,214.11,213.29,0.07692009]
[1693609405520,0.17063298,214.1,213.29,0.07692009]
[1693609405723,0.17063298,214.09,213.29,0.07692009]
[1693609405923,0.17063298,214.08,213.29,0.07692009]
[1693609406124,0.17063298,214.07,213.29,0.07692009]
[1693609406322,0.17063298,214.13,213.29,0.07692009]
[1693609406525,16.4096197,214.14,213.29,0.07692009]
[1693609406526,0.17063298,214.12,213.29,0.07692009]
[1693609406726,0.17063298,214.13,213.29,0.07692009]
[1693609406926,16.4096197,214.14,213.29,0.07692009]
[1693609406927,0.17063298,214.12,213.29,0.07692009]
[1693609407125,0.17063298,214.11,213.29,0.07692009]
[1693609407322,0.17063298,214.1,213.29,0.07692009]
[1693609407525,0.17063298,214.09,213.29,0.07692009]
[1693609407726,0.17063298,214.08,213.29,0.07692009]
[1693609407928,0.17063298,214.13,213.29,0.07692009]
[1693609408131,0.17063298,214.12,213.29,0.07692009]
[1693609408333,0.17063298,214.11,213.29,0.07692009]
[1693609408531,0.17063298,214.1,213.29,0.07692009]